bitfinex/quotes_SOLUSD_20260304
["timestamp","ask_amount","ask_price","bid_price","bid_amount"]
[1772602966625,4.2773751,85.757,85.723,4.20699528]
[1772602967011,4.2773751,85.765,85.731,4.20699528]
[1772602967413,11.65922419,85.769,85.741,4.20699528]
[1772602967815,4.2773751,85.759,85.73,4.20699528]
[1772602968021,4.2773751,85.759,85.731,4.20699528]
[1772602968224,4.15456916,85.769,85.741,4.06219665]
[1772602968530,11.65936013,85.768,85.741,4.06219665]
[1772602968832,4.15456916,85.767,85.741,4.06219665]
[1772602969039,1e-08,85.785,85.761,4.06219665]
[1772602969217,35.21914391,85.827,85.75,5.61480999]
[1772602969218,6.09051262,85.827,85.771,4.06219665]
[1772602969414,11.65107364,85.829,85.782,4.06219665]
[1772602969731,40.77875775,85.829,85.782,4.06219665]
[1772602969929,5.61480999,85.82,85.782,4.06219665]
[1772602970131,5.61480999,85.82,85.79,5.61480999]
[1772602970426,11.65107364,85.829,85.791,15.71843098]
[1772602970630,58.23130877,85.865,85.791,15.71843098]
[1772602970631,5.61480999,85.87,85.791,44.85901682]
[1772602970826,3.69383402,85.897,85.82,5.61480999]
[1772602971016,5.61480999,85.85,85.82,5.61480999]
[1772602971215,5.61480999,85.86,85.82,5.61480999]
[1772602971427,5.61480999,85.85,85.82,5.61480999]
[1772602971612,4.15456916,85.859,85.82,5.61480999]
[1772602972011,5.61480999,85.85,85.75,5.61480999]
[1772602972233,5.61480999,85.85,85.82,5.61480999]
[1772602972538,11.64144353,85.9,85.84,5.61480999]
[1772602972836,4.15456916,85.889,85.823,3.69383402]
[1772602973028,5.61480999,85.88,85.84,5.61480999]
[1772602973212,5.61480999,85.88,85.85,5.61480999]
[1772602973416,5.61480999,85.88,85.84,5.61480999]
[1772602973824,4.15456916,85.889,85.85,5.61480999]
[1772602974217,4.15456916,85.889,85.821,0.28432314]
[1772602974418,40.75074515,85.888,85.821,0.28432314]
[1772602974738,11.64307004,85.888,85.85,5.61480999]
[1772602974938,11.64307004,85.888,85.86,5.61480999]
[1772602975111,5.61480999,85.89,85.85,5.61480999]
[1772602975313,5.61480999,85.89,85.86,5.61480999]
[1772602976136,5.61480999,85.89,85.858,4.06219665]
[1772602976715,5.61480999,85.88,85.851,4.06219665]
[1772602976913,4.15456916,85.888,85.851,4.06219665]
[1772602977135,29.08944922,85.942,85.881,4.06219665]
[1772602977337,5.71480999,85.92,85.881,4.06219665]
[1772602977818,15.79343832,85.919,85.881,4.06219665]
[1772602978015,4.15456916,85.918,85.881,4.06219665]
[1772602978420,4.15456916,85.918,85.89,5.61480999]
[1772602978740,11.6391401,85.917,85.883,4.06219665]
[1772602978921,4.15456916,85.918,85.883,4.06219665]
[1772602979248,29.08080854,85.968,85.901,4.06219665]
[1772602979435,5.61480999,85.94,85.901,4.06219665]
[1772602979618,4.15456916,85.939,85.901,4.06219665]
[1772602979822,5.61480999,85.92,85.891,4.06219665]
[1772602980647,29.09377376,85.93,85.88,5.61480999]
[1772602980942,5.61480999,85.93,85.89,5.61480999]
[1772602981327,5.61480999,85.92,85.89,5.61480999]
[1772602981521,5.61480999,85.91,85.87,17.26028394]
[1772602981721,5.61480999,85.91,85.87,5.61480999]
[1772602981927,5.61480999,85.91,85.87,17.26025557]
[1772602982235,5.61480999,85.9,85.87,5.61480999]
[1772602982434,5.61480999,85.9,85.86,5.61480999]
[1772602982643,11.64157906,85.899,85.871,4.06219665]
[1772602983022,5.61480999,85.9,85.871,4.06219665]
[1772602983349,11.64157906,85.899,85.871,4.06219665]
[1772602983842,5.61480999,85.9,85.871,4.06219665]
[1772602984026,5.61480999,85.9,85.852,40.767833]
[1772602984027,5.61480999,85.91,85.881,4.06219665]
[1772602984436,11.63846279,85.922,85.881,4.06219665]
[1772602984638,5.61480999,85.94,85.901,4.06219665]
[1772602984946,11.63616053,85.939,85.901,4.06219665]
[1772602985247,5.61480999,85.93,85.901,4.06219665]
[1772602985549,5.61480999,85.93,85.901,3.94449665]
[1772602986725,5.61480999,85.93,85.902,11.64117249]
[1772602987233,17.24948131,85.95,85.91,5.61480999]
[1772602987435,11.63467132,85.95,85.911,4.06219665]
[1772602987638,17.24948131,85.95,85.911,4.06219665]
[1772602987841,5.61480999,85.94,85.911,4.06219665]
[1772602988231,4.15456916,85.949,85.911,4.06219665]
[1772602988543,17.24948131,85.95,85.911,4.06219665]
[1772602988746,17.24948131,85.95,85.913,4.06219665]
[1772602989345,5.61480999,85.94,85.913,4.06219665]
[1772602989934,5.61480999,85.93,85.913,4.06219665]
[1772602990140,5.61480999,85.93,85.891,4.06219665]
[1772602990342,5.61480999,85.94,85.911,4.06219665]
[1772602990831,11.63616053,85.939,85.911,4.06219665]
[1772602991731,5.61480999,85.97,85.931,4.06219665]
[1772602992732,11.63385918,85.956,85.931,4.06219665]
[1772602992941,5.61480999,85.95,85.931,4.06219665]
[1772602993227,5.61480999,85.95,85.911,4.06219665]
[1772602994233,4.15456916,85.955,85.911,4.06219665]
[1772602994432,5.61480999,85.95,85.921,4.06219665]
[1772602994931,11.63480668,85.949,85.921,4.06219665]
[1772602995328,5.61480999,85.93,85.9,5.61480999]
[1772602995534,5.61480999,85.93,85.901,4.06219665]
[1772602995735,40.72182339,85.949,85.858,30.0]
[1772602995736,5.61480999,85.92,85.891,4.06219665]
[1772602995936,5.61480999,85.91,85.891,4.06219665]
[1772602996146,5.61480999,85.9,85.872,4.06219665]
[1772602996451,9.76937915,85.9,85.861,4.06219665]
[1772602996649,5.61480999,85.9,85.861,4.06219665]
[1772602996951,11.64157906,85.899,85.863,11.64646005]
[1772602997145,5.61480999,85.95,85.863,11.64646005]
[1772602997146,4.15456916,85.955,85.891,4.06219665]
[1772602997347,9.76937915,85.95,85.901,4.06219665]
[1772602997651,4.15456916,85.949,85.911,4.06219665]
[1772602998151,4.15456916,85.949,85.919,4.13870364]
[1772602998653,4.15456916,85.949,85.867,3.69383402]
[1772602998654,4.26688638,85.955,85.92,5.61480999]
[1772602998836,5.61480999,85.95,85.921,3.13926233]
[1772602999031,5.61480999,85.95,85.922,11.63846279]
[1772602999245,11.63412988,85.954,85.922,11.63846279]
[1772602999852,5.61480999,85.95,85.922,11.63846279]
[1772603000051,5.61480999,85.95,85.91,5.61480999]
[1772603000253,4.32527774,85.949,85.91,5.61480999]
[1772603000955,4.32527774,85.939,85.91,5.61480999]
[1772603001254,11.63629593,85.938,85.91,17.25482382]
[1772603001435,11.63629593,85.938,85.911,4.28794444]
[1772603001959,4.32527774,85.937,85.901,4.28794444]
[1772603002146,5.61480999,85.93,85.901,4.28794444]
[1772603002452,46.51549626,85.993,85.901,4.28794444]
[1772603002453,11.63453595,85.951,85.921,4.28794444]
[1772603003154,11.63453595,85.951,85.921,3.70497936]
[1772603004953,11.8997154,85.957,85.921,4.28794444]
[1772603005538,11.8997154,85.957,85.92,5.57343772]
[1772603005539,16.22499314,85.957,85.923,4.28794444]
[1772603005740,4.32527774,85.956,85.923,4.28794444]
[1772603006543,11.8997154,85.957,85.923,4.28794444]
[1772603006748,29.08031258,85.969,85.921,11.63851986]
[1772603006749,4.5,85.976,85.924,1.16381918]
[1772603006957,4.5,85.976,85.94,5.57343772]
[1772603007846,11.63128816,85.975,85.941,11.63588973]
[1772603008047,4.5,85.974,85.941,11.63588973]
[1772603008957,4.5,85.969,85.931,11.63724383]
[1772603009540,4.5,85.959,85.931,11.63724383]
[1772603009755,4.5,85.959,85.921,11.63859824]
[1772603009955,4.5,85.959,85.931,11.63724383]
[1772603010847,4.5,85.959,85.931,40.73035341]
[1772603011461,4.5,85.969,85.931,40.73035341]
[1772603011760,4.5,85.968,85.94,5.57343772]
[1772603012265,4.5,85.968,85.941,11.63588973]
[1772603012559,4.5,85.966,85.904,0.28432314]
[1772603012867,4.5,85.959,85.93,5.57343772]
[1772603013065,4.5,85.959,85.92,5.57343772]
[1772603013780,4.5,85.949,85.91,5.57343772]
[1772603014073,4.5,85.939,85.91,5.57343772]
[1772603014372,4.5,85.937,85.9,5.57343772]
[1772603014854,4.5,85.929,85.9,5.57343772]
[1772603015368,4.5,85.949,85.92,5.57343772]
[1772603016270,4.5,85.959,85.931,11.63724383]
[1772603017059,4.5,85.958,85.92,5.57343772]
[1772603017269,4.5,85.949,85.91,5.57343772]
[1772603017466,4.5,85.939,85.9,5.57343772]
[1772603017662,4.5,85.939,85.879,11.92861336]
[1772603017970,4.5,85.929,85.879,40.75501577]
[1772603018162,4.5,85.929,85.89,5.57343772]
[1772603018367,4.5,85.928,85.891,11.64266337]
[1772603018668,4.5,85.928,85.89,5.57343772]
[1772603018851,4.5,85.919,85.884,11.64349087]
[1772603019168,4.5,85.919,85.89,5.57343772]
[1772603019954,5.57343772,85.91,85.884,11.64349087]
[1772603020156,4.5,85.911,85.884,11.64349087]
[1772603020477,4.5,85.919,85.89,5.57343772]
[1772603020676,5.57343772,85.92,85.884,11.64349087]
[1772603020864,4.5,85.919,85.884,11.64349087]
[1772603021060,4.5,85.919,85.89,5.57343772]
[1772603022264,4.5,85.919,85.884,11.64349087]
[1772603022461,4.5,85.917,85.89,5.57343772]
[1772603023268,11.63839112,85.923,85.89,5.57343772]
[1772603023479,4.5,85.922,85.89,5.57343772]
[1772603023975,4.5,85.919,85.89,5.57343772]
[1772603024565,4.5,85.919,85.891,40.7493218]
[1772603024756,4.5,85.919,85.891,11.64266337]
[1772603025477,4.5,85.918,85.881,11.64401904]
[1772603025775,4.5,85.918,85.881,40.75406666]
[1772603025979,4.5,85.918,85.89,5.57343772]
[1772603026860,4.5,85.918,85.88,5.57343772]
[1772603027779,5.57343772,85.91,85.88,5.57343772]
[1772603027978,4.5,85.911,85.88,5.57343772]
[1772603028570,5.57343772,85.91,85.88,5.57343772]
[1772603028887,10.07343772,85.92,85.881,40.75406666]
[1772603029068,4.5,85.919,85.89,5.57343772]
[1772603029390,4.5,85.919,85.881,40.75406666]
[1772603030375,4.5,85.919,85.865,58.23031452]
[1772603030679,4.5,85.919,85.88,5.57343772]
[1772603032580,4.5,85.919,85.881,40.75406666]
[1772603032885,5.57343772,85.91,85.881,40.75406666]
[1772603033475,4.5,85.909,85.881,40.75406666]
[1772603034266,4.5,85.918,85.881,40.75406666]
[1772603035281,5.57343772,85.92,85.89,5.57343772]
[1772603035579,4.5,85.919,85.881,40.75406666]
[1772603036280,5.57343772,85.91,85.881,40.75406666]
[1772603036577,4.5,85.909,85.881,40.75406666]
[1772603036883,4.5,85.918,85.881,40.75406666]
[1772603037883,4.5,85.909,85.881,40.75406666]
[1772603038762,4.5,85.918,85.881,40.75406666]
[1772603039490,4.5,85.917,85.881,40.75406666]
[1772603040376,4.5,85.899,85.881,11.64401904]
[1772603040579,4.5,85.899,85.87,5.57343772]
[1772603040881,4.5,85.879,85.85,5.57343772]
[1772603041177,4.5,85.869,85.831,40.77780754]
[1772603041376,5.57343772,85.87,85.841,4.23271036]
[1772603041584,5.57343772,85.88,85.841,4.23271036]
[1772603042183,5.57343772,85.87,85.841,4.23271036]
[1772603042574,5.57343772,85.87,85.831,40.77780754]
[1772603042575,5.57343772,85.86,85.831,40.77780754]
[1772603042886,5.57343772,85.85,85.831,11.65080215]
[1772603043382,9.71763792,85.85,85.831,11.65080215]
[1772603043890,5.57343772,85.85,85.829,44.17144952]
[1772603044687,5.57343772,85.85,85.83,11.6509379]
[1772603044885,5.57343772,85.85,85.829,44.17144952]
[1772603045063,163.4,85.892,85.829,44.17144952]
[1772603045064,5.57343772,85.84,85.829,44.17144952]
[1772603045465,5.57343772,85.84,85.808,11.65392504]
[1772603045691,5.57343772,85.83,85.808,11.65392504]
[1772603046182,5.57343772,85.82,85.806,11.65419667]
[1772603046385,4.1442002,85.819,85.793,11.65582876]
[1772603047081,5.57343772,85.81,85.786,11.65679833]
[1772603047263,4.1442002,85.809,85.786,11.65679833]
[1772603047464,4.1442002,85.809,85.786,15.88950869]
[1772603047989,5.57343772,85.81,85.787,4.23271036]
[1772603048180,5.57343772,85.82,85.791,4.23271036]
[1772603048383,9.71763792,85.82,85.791,4.23271036]
[1772603048583,4.1442002,85.819,85.791,4.23271036]
[1772603048976,5.57343772,85.81,85.791,4.23271036]
[1772603049171,4.1442002,85.811,85.787,11.65676255]
[1772603049394,5.57343772,85.81,85.787,11.65676255]
[1772603049887,4.1442002,85.809,85.787,11.65676255]
[1772603050182,4.1442002,85.809,85.782,11.6573983]
[1772603050386,5.57343772,85.8,85.782,11.6573983]
[1772603050772,5.57343772,85.8,85.78,0.2]
[1772603050773,5.57343772,85.8,85.781,11.65759317]
[1772603051081,4.10275819,85.809,85.782,4.23271036]
[1772603051875,5.57343772,85.8,85.78,0.2]
[1772603052076,5.57343772,85.79,85.78,0.2]
[1772603052775,5.57343772,85.79,85.78,0.15855799]
[1772603052988,4.0617306,85.789,85.758,11.66069699]
[1772603053193,5.57343772,85.78,85.759,4.23271036]
[1772603053388,4.0617306,85.789,85.759,4.23271036]
[1772603053591,5.57343772,85.78,85.759,4.23271036]
[1772603053894,5.57343772,85.78,85.75,57.97343772]
[1772603053895,5.57343772,85.78,85.76,15.89315812]
[1772603054069,5.57343772,85.78,85.76,4.23271036]
[1772603054392,58.2579261,85.826,85.752,4.23271036]
[1772603054393,5.57343772,85.77,85.752,4.23271036]
[1772603054589,5.57343772,85.77,85.75,52.4]
[1772603054771,5.57343772,85.79,85.752,4.23271036]
[1772603055294,5.57343772,85.8,85.761,4.23271036]
[1772603055477,5.57343772,85.79,85.761,4.23271036]
[1772603055677,4.0617306,85.789,85.761,4.23271036]
[1772603056088,5.57343772,85.78,85.761,4.23271036]
[1772603056691,5.57343772,85.78,85.758,4.23271036]
[1772603056893,4.0617306,85.789,85.758,4.23271036]
[1772603057279,5.57343772,85.78,85.758,4.23271036]
[1772603058295,5.57343772,85.78,85.759,11.66058372]
[1772603058520,5.57343772,85.78,85.758,4.23271036]
[1772603058801,5.57343772,85.77,85.747,11.66214884]
[1772603059696,5.57343772,85.77,85.746,4.39303941]
[1772603060205,5.57343772,85.78,85.753,4.39303941]
[1772603060509,5.57343772,85.77,85.753,4.39303941]
[1772603060681,5.57343772,85.78,85.753,4.39303941]
[1772603061013,5.57343772,85.77,85.753,4.39303941]
[1772603061381,5.57343772,85.78,85.753,4.39303941]
[1772603061893,15.71856246,85.787,85.753,4.39303941]
[1772603062093,5.57343772,85.78,85.753,4.39303941]
[1772603062304,5.57343772,85.79,85.755,4.39303941]
[1772603062880,17.22846886,85.8,85.761,4.39303941]
[1772603063101,21.29019946,85.8,85.761,4.39303941]
[1772603063304,5.57343772,85.79,85.761,4.39303941]
[1772603063690,21.29024228,85.8,85.761,4.39303941]
[1772603063889,5.57343772,85.79,85.761,4.39303941]
[1772603064487,5.59430885,85.79,85.762,11.66017583]
[1772603064703,5.59430885,85.79,85.763,4.39303941]
[1772603065700,9.65603945,85.8,85.763,4.39303941]
[1772603066203,4.0617306,85.8,85.763,4.39303941]
[1772603066397,9.65603945,85.8,85.763,4.39303941]
[1772603066597,5.59430885,85.79,85.763,4.39303941]
[1772603066798,5.59430885,85.79,85.765,4.39303941]
[1772603066994,5.59430885,85.78,85.757,4.39303941]
[1772603068206,5.59430885,85.79,85.757,4.39303941]
[1772603068598,4.0617306,85.799,85.761,4.39303941]
[1772603068793,4.0617306,85.799,85.763,4.39303941]
[1772603069189,5.59430885,85.79,85.763,4.39303941]
[1772603070394,5.59430885,85.8,85.763,4.39303941]
[1772603070595,9.65603945,85.8,85.763,4.39303941]
[1772603070805,5.59430885,85.79,85.765,4.39303941]
[1772603071410,4.0617306,85.808,85.771,4.39303941]
[1772603071589,5.59430885,85.8,85.771,4.39303941]
[1772603072305,58.24389352,85.846,85.771,4.39303941]
[1772603072306,5.59430885,85.81,85.771,4.39303941]
[1772603072715,5.59430885,85.81,85.781,4.39303941]
[1772603072893,5.59430885,85.81,85.783,4.39303941]
[1772603073215,5.59430885,85.82,85.783,4.39303941]
[1772603073588,5.59430885,85.83,85.801,4.39303941]
[1772603073800,11.64980489,85.839,85.801,4.39303941]
[1772603074111,4.0617306,85.848,85.811,4.39303941]
[1772603074313,4.0617306,85.855,85.821,4.39303941]
[1772603074489,5.59430885,85.85,85.821,4.39303941]
[1772603075001,4.0617306,85.872,85.831,4.39303941]
[1772603075311,4.0617306,85.872,85.822,11.65202395]
[1772603075312,5.59430885,85.87,85.841,4.39303941]
[1772603075719,4.0617306,85.872,85.841,4.39303941]
[1772603077218,5.59430885,85.87,85.843,4.39303941]
[1772603077400,4.0617306,85.872,85.843,4.39303941]
[1772603078502,4.0617306,85.872,85.85,5.59430885]
[1772603078827,4.0617306,85.879,85.851,4.39303941]
[1772603079519,4.0617306,85.898,85.861,4.39303941]
[1772603079698,11.64237543,85.894,85.861,4.39303941]
[1772603079899,4.0617306,85.897,85.861,4.39303941]
[1772603080806,5.59430885,85.88,85.85,5.59430885]
[1772603080997,4.0617306,85.879,85.85,5.59430885]
[1772603081906,4.0617306,85.879,85.851,4.39303941]
[1772603082305,11.64442581,85.878,85.851,4.39303941]
[1772603082505,5.59430885,85.87,85.841,4.39303941]
[1772603082812,4.0617306,85.869,85.841,4.39303941]
[1772603083392,4.0617306,85.869,85.835,11.65024043]
[1772603083798,4.33016385,85.859,85.82,5.59430885]
[1772603084118,9.9244727,85.85,85.82,5.59430885]
[1772603084501,4.33016385,85.849,85.81,5.59430885]
[1772603084716,5.59430885,85.84,85.81,5.59430885]
[1772603084918,9.9244727,85.84,85.81,5.59430885]
[1772603085620,4.33016385,85.849,85.82,5.59430885]
[1772603086115,11.64755209,85.855,85.821,4.39303941]
[1772603086327,15.97771594,85.855,85.821,4.39303941]
[1772603086524,11.64781661,85.853,85.822,11.65202395]
[1772603086718,11.64781661,85.853,85.823,4.39303941]
[1772603086918,5.59430885,85.85,85.823,4.39303941]
[1772603087111,4.33016385,85.849,85.82,5.59430885]
[1772603087510,4.33016385,85.849,85.821,4.39303941]
[1772603088418,4.33016385,85.849,85.821,16.04519913]
[1772603088619,15.97855761,85.849,85.821,16.04519913]
[1772603089323,4.45560562,85.848,85.821,4.39303941]
[1772603090207,4.45560562,85.848,85.82,4.39610085]
[1772603090409,4.45560562,85.848,85.812,4.39610085]
[1772603090711,5.59430885,85.84,85.813,11.65324601]
[1772603091222,4.45560562,85.839,85.812,4.39610085]
[1772603091937,4.45560562,85.839,85.796,4.39610085]
[1772603092228,4.45560562,85.839,85.801,4.39610085]
[1772603092805,5.59430885,85.83,85.801,4.39610085]
[1772603093022,4.41104956,85.829,85.792,4.39610085]
[1772603093414,4.41104956,85.819,85.781,4.39610085]
[1772603094134,4.41104956,85.819,85.791,4.39610085]
[1772603094714,4.41104956,85.819,85.782,4.39610085]
[1772603095018,5.59430885,85.81,85.782,4.39610085]
[1772603095837,11.65378922,85.809,85.782,4.39610085]
[1772603096027,11.65378922,85.809,85.783,11.65732138]
[1772603096336,5.59430885,85.81,85.783,16.05342223]
[1772603096714,11.65351761,85.811,85.783,16.05342223]
[1772603096915,5.59430885,85.8,85.783,16.05342223]
[1772603097225,5.59430885,85.81,85.784,4.39610085]
[1772603098114,5.59430885,85.81,85.77,34.74186128]
[1772603098115,5.59430885,85.81,85.785,11.6570496]
[1772603098433,5.59430885,85.81,85.786,4.39610085]
[1772603099922,21.65903825,85.81,85.786,4.39610085]
[1772603100737,4.41104956,85.809,85.755,4.39610085]
[1772603101032,5.59430885,85.78,85.756,4.39610085]
[1772603101234,5.59430885,85.79,85.761,4.39610085]
[1772603102333,40.78781339,85.81,85.728,58.32340722]
[1772603102334,4.41104956,85.779,85.754,56.83610085]
[1772603102736,5.59430885,85.8,85.754,52.44]
[1772603102737,5.59430885,85.77,85.754,52.44]
[1772603104014,11.65922419,85.769,85.754,52.44]
[1772603104213,5.59430885,85.77,85.754,52.44]
[1772603104933,4.41104956,85.797,85.755,4.39610085]
[1772603105235,5.59430885,85.78,85.756,4.39610085]
[1772603106037,10.00535841,85.77,85.754,52.44]
[1772603106243,4.41104956,85.77,85.755,11.66112763]
[1772603106424,4.41104956,85.77,85.755,16.05722848]
[1772603107325,4.41104956,85.77,85.755,4.39610085]
[1772603107524,11.65922419,85.769,85.754,52.44]
[1772603108025,11.65922419,85.769,85.747,4.39610085]
[1772603108026,16.07027375,85.769,85.747,4.39610085]
[1772603108225,16.07027375,85.769,85.74,16.05921284]
[1772603108226,4.41104956,85.768,85.74,16.05921284]
[1772603108642,4.41104956,85.768,85.744,11.66262362]
[1772603108826,11.65865771,85.774,85.745,4.39610085]
[1772603109032,1.88083158,85.8,85.761,4.39610085]
[1772603109319,58.25627234,85.828,85.773,4.39610085]
[1772603109320,4.41104956,85.799,85.773,4.39610085]
[1772603110129,16.06633289,85.798,85.773,4.39610085]
[1772603110333,11.65528333,85.798,85.773,4.39610085]
[1772603110541,11.65528333,85.798,85.77,5.59356]
[1772603110542,4.41104956,85.797,85.77,5.59356]
[1772603111249,4.41104956,85.797,85.771,4.39610085]
[1772603111442,11.65555503,85.796,85.771,4.39610085]
[1772603112452,10.00460956,85.82,85.791,4.39610085]
[1772603112827,4.41104956,85.819,85.791,4.39610085]
[1772603113235,4.41104956,85.819,85.791,1.30612074]
[1772603113628,4.45560562,85.809,85.78,17.25127749]
[1772603114542,4.45560562,85.799,85.77,5.59356]
[1772603115252,5.59356,85.8,85.744,4.39610085]
[1772603115253,4.45560562,85.779,85.744,4.39610085]
[1772603115460,5.59356,85.8,85.74,5.59356]
[1772603115461,4.45560562,85.769,85.74,5.59356]
[1772603115631,4.45560562,85.769,85.742,4.39610085]
[1772603116948,5.59356,85.77,85.742,4.39610085]
[1772603116949,4.45560562,85.767,85.743,11.66275964]
[1772603117334,4.45560562,85.766,85.731,4.39610085]
[1772603117739,4.21935085,85.759,85.731,4.39610085]
[1772603117941,4.21935085,85.759,85.73,5.59356]
[1772603118146,4.21935085,85.759,85.731,4.16056185]
[1772603118739,4.33141138,85.767,85.741,4.16056185]
[1772603119463,4.33141138,85.775,85.741,4.16056185]
[1772603119630,5.59356,85.77,85.741,4.16056185]
[1772603119831,4.33141138,85.769,85.741,4.16056185]
[1772603120049,4.33141138,85.775,85.741,4.16056185]
[1772603120835,5.59356,85.77,85.743,4.16056185]
[1772603121041,4.33141138,85.779,85.751,4.16056185]
[1772603121249,4.33141138,85.802,85.751,4.16056185]
[1772603121442,5.59356,85.79,85.761,4.16056185]
[1772603121748,4.33141138,85.789,85.761,4.16056185]
[1772603122652,40.79158993,85.802,85.75,5.59356]
[1772603122653,4.33141138,85.779,85.75,5.59356]
[1772603123152,4.33141138,85.777,85.75,5.59356]
[1772603123356,4.33141138,85.777,85.751,4.16056185]
[1772603123565,5.59356,85.78,85.751,4.16056185]
[1772603123740,4.33141138,85.797,85.761,4.16056185]
[1772603124135,29.13502207,85.808,85.761,4.16056185]
[1772603124136,5.59356,85.79,85.761,4.16056185]
[1772603124340,4.33141138,85.789,85.761,4.16056185]
[1772603125062,4.33141138,85.789,85.751,4.16056185]
[1772603125439,4.33141138,85.787,85.753,4.16056185]
[1772603125745,15.98805333,85.788,85.753,4.16056185]
[1772603126074,4.33141138,85.787,85.753,4.16056185]
[1772603126452,5.59529416,85.8,85.761,4.16056185]
[1772603126655,5.59529416,85.8,85.76,5.59529416]
[1772603126656,11.65433249,85.805,85.771,4.16056185]
[1772603126951,4.33141138,85.809,85.781,4.16056185]
[1772603127367,4.33141138,85.809,85.771,4.16056185]
[1772603127737,5.59529416,85.8,85.781,4.16056185]
[1772603128338,4.33141138,85.799,85.773,4.16056185]
[1772603128641,5.59529416,85.79,85.76,4.16056185]
[1772603128864,5.59529416,85.79,85.761,4.16056185]
[1772603129743,5.59529416,85.79,85.762,11.66017583]
[1772603129955,4.33141138,85.779,85.751,4.16056185]
[1772603130154,4.33141138,85.779,85.704,61.2]
[1772603130155,5.59529416,85.76,85.743,4.16056185]
[1772603130356,11.65528333,85.798,85.726,4.16056185]
[1772603130357,5.59529416,85.75,85.726,4.16056185]
[1772603130674,5.59529416,85.75,85.727,4.16056185]
[1772603130847,5.59529416,85.74,85.704,4.16056185]
[1772603131051,5.59529416,85.73,85.704,4.16056185]
[1772603131253,5.59529416,85.74,85.704,4.16056185]
[1772603131866,5.59529416,85.73,85.706,4.16056185]
[1772603132666,5.59529416,85.72,85.706,4.16056185]
[1772603132872,5.59529416,85.72,85.7,0.2]
[1772603133275,5.59529416,85.72,85.7,11.86851873]
[1772603133653,5.59529416,85.72,85.7,0.2]
[1772603133860,5.59529416,85.73,85.702,4.16056185]
[1772603134055,4.33141138,85.739,85.702,4.16056185]
[1772603134260,5.59529416,85.74,85.711,4.16056185]
[1772603134456,5.59529416,85.73,85.711,4.16056185]
[1772603134666,5.59529416,85.73,85.702,4.16056185]
[1772603135263,3.69383402,85.786,85.701,11.66847528]
[1772603135264,4.33141138,85.755,85.711,4.16056185]
[1772603135475,4.33141138,85.749,85.721,4.16056185]
[1772603135977,4.33141138,85.749,85.722,4.16056185]
[1772603136281,5.59529416,85.74,85.722,4.16056185]
[1772603136662,5.59529416,85.75,85.723,4.16056185]
[1772603136964,4.33141138,85.758,85.723,4.16056185]
[1772603138362,4.33141138,85.758,85.73,9.75585601]
[1772603138560,4.33141138,85.758,85.731,4.16056185]
[1772603139479,3.69383402,85.796,85.724,11.66534459]
[1772603139480,4.33141138,85.789,85.751,4.16056185]
[1772603139658,4.33141138,85.788,85.751,4.16056185]
[1772603140276,4.33141138,85.779,85.751,4.16056185]
[1772603140876,15.98941226,85.778,85.751,4.16056185]
[1772603141085,4.33141138,85.777,85.751,4.16056185]
[1772603142864,4.33141138,85.775,85.743,4.16056185]
[1772603143285,4.33141138,85.775,85.743,3.57294186]
[1772603143979,4.33141138,85.769,85.74,5.59529416]
[1772603144185,4.33141138,85.769,85.73,5.59529416]
[1772603144479,4.33141138,85.759,85.729,11.66455647]
[1772603144777,4.33141138,85.759,85.723,11.66538136]
[1772603144978,11.66207958,85.748,85.72,5.59529416]
[1772603145179,4.33141138,85.747,85.711,4.16056185]
[1772603145383,4.33141138,85.739,85.711,4.16056185]
[1772603146787,4.33141138,85.749,85.711,4.16056185]
[1772603146986,4.33141138,85.758,85.731,4.16056185]
[1772603147286,4.33141138,85.766,85.731,4.16056185]
[1772603148680,4.4788844,85.749,85.723,4.2730513]
[1772603149076,16.13990769,85.756,85.731,4.2730513]
[1772603149676,4.4788844,85.755,85.724,15.93839589]
[1772603149873,4.4788844,85.755,85.725,4.2730513]
[1772603150266,4.4788844,85.755,85.73,5.59529416]
[1772603150773,4.4788844,85.755,85.725,4.2730513]
[1772603151690,4.4788844,85.755,85.712,29.16744446]
[1772603151691,4.4788844,85.778,85.741,4.2730513]
[1772603154893,10.07417856,85.77,85.743,4.2730513]
[1772603155197,4.4788844,85.759,85.721,4.2730513]
[1772603155383,4.4788844,85.759,85.724,11.66525338]
[1772603155588,4.4788844,85.749,85.724,11.66525338]
[1772603155896,4.76320754,85.776,85.722,4.2730513]
[1772603156112,4.4788844,85.759,85.722,4.2730513]
[1772603157088,4.4788844,85.749,85.714,4.2730513]
[1772603157593,4.4788844,85.743,85.714,4.2730513]
[1772603157796,4.4788844,85.743,85.716,4.2730513]
[1772603158599,16.13960409,85.758,85.731,4.2730513]
[1772603158784,4.4788844,85.762,85.731,4.2730513]
[1772603158986,4.4788844,85.762,85.733,4.2730513]
[1772603159379,4.4788844,85.762,85.732,11.66425605]
[1772603159380,4.4788844,85.779,85.748,4.2730513]
[1772603159693,4.4788844,85.779,85.74,5.59529416]